fUSD/lending_fUSD_20250814
["ID","MTS","AMOUNT","RATE_DAILY","PERIOD"]
[379126371,1755151945747,-400.0,0.00056438,120]
[379126372,1755151945757,-400.0,0.00056438,120]
[379126373,1755151945766,-1599.04,0.00056438,120]
[379126374,1755151945775,-400.0,0.00056438,120]
[379126375,1755151945784,-258.87337228,0.00056438,120]
[379126376,1755151945794,-400.0,0.00056438,120]
[379126377,1755151945803,-400.0,0.00056438,120]
[379126378,1755151945813,-400.0,0.00056438,120]
[379126379,1755151945822,-400.0,0.00056438,120]
[379126380,1755151945831,-400.0,0.00056438,120]
[379126381,1755151945841,-400.0,0.00056438,120]
[379126382,1755151945850,-400.0,0.00056438,120]
[379126383,1755151945860,-400.0,0.00056438,120]
[379126384,1755151945869,-400.0,0.00056438,120]
[379126385,1755151945879,-400.89,0.00056438,120]
[379126386,1755151945888,-400.0,0.00056438,120]
[379126387,1755151945899,-500.0,0.00056438,2]
[379126388,1755151945909,-400.0,0.00056438,120]
[379126389,1755151945919,-400.0,0.00056438,120]
[379126390,1755151945928,-270.74756553,0.00056438,120]
[379126391,1755151945939,-1306.08,0.00056438,120]
[379126392,1755151945950,-400.0,0.00056438,120]
[379126393,1755151945959,-400.0,0.00056438,120]
[379126394,1755151945969,-1708.88,0.00056438,120]
[379126395,1755151945979,-400.0,0.00056438,120]
[379126396,1755151945989,-400.0,0.00056438,120]
[379126397,1755151945999,-400.0,0.00056438,120]
[379126398,1755151946008,-400.0,0.00056438,120]
[379126399,1755151946019,-400.0,0.00056438,120]
[379126400,1755151946029,-316.57645328,0.00056438,120]
[379126401,1755151946039,-1894.75,0.00056438,120]
[379126402,1755151946049,-3248.67,0.00056438,120]
[379126403,1755151946058,-294.5369012,0.00056438,120]
[379126404,1755151946068,-854.770045,0.00056438,120]
[379126405,1755151946077,-400.0,0.00056438,120]
[379126406,1755151946087,-510.95,0.00056438,120]
[379126407,1755151946096,-684.44,0.00056438,120]
[379126408,1755151946106,-400.0,0.00056438,120]
[379126409,1755151946116,-710.57,0.00056438,120]
[379126410,1755151946125,-1049.79,0.00056438,120]
[379126411,1755151946135,-402.46127421,0.00056438,120]
[379126412,1755151946153,-482.6,0.00056438,2]
[379126413,1755151946165,-400.0,0.00056438,120]
[379126414,1755151946176,-1320.49,0.00056438,30]
[379126415,1755151946186,-400.0,0.00056438,120]
[379126416,1755151946196,-400.0,0.00056438,2]
[379126417,1755151946205,-941.38,0.00056438,120]
[379126418,1755151946215,-400.0,0.00056438,120]
[379126419,1755151946224,-400.0,0.00056438,120]
[379126420,1755151946234,-831.0,0.00056438,120]
[379126421,1755151946244,-654.424317,0.00056438,120]
[379126422,1755151946254,-412.41,0.00056438,120]
[379126423,1755151946264,-510.65,0.00056438,120]
[379126424,1755151946274,-400.0,0.00056438,120]
[379126425,1755151946283,-1013.506298,0.00056438,120]
[379126426,1755151946293,-400.0,0.00056438,120]
[379126427,1755151946302,-923.09,0.00056438,120]
[379126428,1755151946312,-400.0,0.00056438,120]
[379126429,1755151946322,-763.46,0.00056438,120]
[379126430,1755151946332,-276.531266,0.00056438,120]
[379126431,1755151946342,-400.0,0.00056438,120]
[379126432,1755151946352,-1059.25,0.00056438,120]
[379126433,1755151946362,-2247.15,0.00056438,120]
[379126434,1755151946372,-400.0,0.00056438,120]
[379126435,1755151946382,-757.93,0.00056438,120]
[379126436,1755151946392,-400.0,0.00056438,120]
[379126437,1755151946403,-495.55,0.00056438,120]
[379126438,1755151946413,-1166.88,0.00056438,120]
[379126439,1755151946423,-400.0,0.00056438,120]
[379126440,1755151946433,-400.0,0.00056438,120]
[379126441,1755151946442,-1435.74,0.00056438,120]
[379126442,1755151946452,-3108.2,0.00056438,120]
[379126443,1755151946462,-400.0,0.00056438,120]
[379126444,1755151946472,-2535.34,0.00056438,120]
[379126445,1755151946481,-1075.79,0.00056438,120]
[379126446,1755151946491,-400.0,0.00056438,120]
[379126447,1755151946501,-400.0,0.00056438,120]
[379126448,1755151946511,-2361.73,0.00056438,120]
[379126449,1755151946520,-491.31,0.00056438,120]
[379126450,1755151946530,-274.02525715,0.00056438,120]
[379126451,1755151946540,-423.58,0.00056438,120]
[379126452,1755151946549,-500.0,0.00056438,10]
[379126453,1755151946566,-849.81,0.00056438,120]
[379126454,1755151946577,-400.0,0.00056438,120]
[379126455,1755151946587,-400.0,0.00056438,120]
[379126456,1755151946597,-764.83,0.00056438,120]
[379126457,1755151946607,-677.79,0.00056438,120]
[379126458,1755151946617,-400.0,0.00056438,120]
[379126459,1755151946626,-400.0,0.00056438,120]
[379126460,1755151946636,-400.0,0.00056438,120]
[379126461,1755151946647,-735.32,0.00056438,120]
[379126462,1755151946656,-400.0,0.00056438,120]
[379126463,1755151946666,-1968.98,0.00056438,120]
[379126464,1755151946675,-953.58,0.00056438,120]
[379126465,1755151946684,-919.31,0.00056438,120]
[379126466,1755151946694,-400.0,0.00056438,120]
[379126467,1755151946703,-926.46,0.00056438,120]
[379126468,1755151946712,-400.0,0.00056438,120]
[379126469,1755151946722,-400.0,0.00056438,120]
[379126470,1755151946731,-1638.37,0.00056438,120]
[379126471,1755151946741,-2344.2,0.00056438,120]
[379126472,1755151946750,-738.18,0.00056438,120]
[379126473,1755151946760,-300.0,0.00056438,120]
[379126474,1755151946770,-1830.88,0.00056438,120]
[379126475,1755151946779,-400.0,0.00056438,120]
[379126476,1755151946789,-400.0,0.00056438,120]
[379126477,1755151946798,-400.0,0.00056438,120]
[379126478,1755151946809,-400.0,0.00056438,120]
[379126479,1755151946818,-460.0,0.00056438,120]
[379126480,1755151946827,-2134.61,0.00056438,120]
[379126481,1755151946837,-400.0,0.00056438,120]
[379126482,1755151946847,-400.0,0.00056438,120]
[379126483,1755151946856,-1458.72,0.00056438,120]
[379126484,1755151946866,-400.0,0.00056438,120]
[379126485,1755151946875,-1778.19,0.00056438,120]
[379126486,1755151946889,-400.0,0.00056438,120]
[379126487,1755151946900,-400.0,0.00056438,120]
[379126488,1755151946910,-400.0,0.00056438,120]
[379126489,1755151946919,-494.38,0.00056438,120]
[379126490,1755151946928,-400.0,0.00056438,120]
[379126491,1755151946938,-1224.65,0.00056438,120]
[379126492,1755151946949,-320.59153476,0.00056438,120]
[379126493,1755151946960,-416.33,0.00056438,120]
[379126494,1755151946971,-400.0,0.00056438,16]
[379126495,1755151946981,-400.0,0.00056438,120]
[379126496,1755151946990,-1483.14,0.00056438,120]
[379126497,1755151947000,-663.87,0.00056438,120]
[379126498,1755151947010,-400.0,0.00056438,120]
[379126499,1755151947020,-400.0,0.00056438,120]
[379126500,1755151947032,-400.0,0.00056438,120]
[379126501,1755151947042,-400.0,0.00056438,120]
[379126502,1755151947051,-683.0,0.00056438,120]
[379126503,1755151947061,-898.77,0.00056438,60]
[379126504,1755151947071,-853.09,0.00056438,120]
[379126505,1755151947080,-400.0,0.00056438,14]
[379126506,1755151947090,-400.0,0.00056438,120]
[379126507,1755151947099,-682.62,0.00056438,120]
[379126508,1755151947110,-525.69,0.00056438,120]
[379126509,1755151947119,-400.0,0.00056438,120]
[379126510,1755151947128,-400.0,0.00056438,30]
[379126511,1755151947138,-400.0,0.00056438,120]
[379126512,1755151947149,-400.0,0.00056438,120]
[379126513,1755151947159,-439.52,0.00056438,120]
[379126514,1755151947168,-400.0,0.00056438,120]
[379126515,1755151947178,-408.74,0.00056438,120]
[379126516,1755151947188,-400.0,0.00056438,120]
[379126517,1755151947198,-633.09,0.00056438,120]
[379126518,1755151947207,-749.16,0.00056438,120]
[379126519,1755151947217,-400.0,0.00056438,120]
[379126520,1755151947226,-400.0,0.00056438,120]
[379126521,1755151947236,-549.77,0.00056438,120]
[379126522,1755151947245,-400.0,0.00056438,120]
[379126523,1755151947254,-1613.96,0.00056438,120]
[379126524,1755151947265,-1832.53,0.00056438,120]
[379126525,1755151947275,-1063.66,0.00056438,120]
[379126526,1755151947286,-400.0,0.00056438,120]
[379126527,1755151947297,-400.0,0.00056438,120]
[379126528,1755151947308,-400.0,0.00056438,120]
[379126529,1755151947319,-526.65,0.00056438,120]
[379126530,1755151947330,-400.0,0.00056438,120]
[379126531,1755151947344,-400.0,0.00056438,120]
[379126532,1755151947356,-400.0,0.00056438,120]
[379126533,1755151947368,-400.0,0.00056438,120]
[379126534,1755151947379,-413.05,0.00056438,120]
[379126535,1755151947390,-400.0,0.00056438,120]
[379126536,1755151947403,-888.91,0.00056438,120]
[379126537,1755151947414,-1124.78,0.00056438,120]
[379126538,1755151947425,-483.51,0.00056438,120]
[379126539,1755151947437,-400.0,0.00056438,120]
[379126540,1755151947448,-400.0,0.00056438,120]
[379126541,1755151947459,-518.91,0.00056438,120]
[379126542,1755151947470,-537.81,0.00056438,120]
[379126543,1755151947481,-1231.11,0.00056438,120]
[379126544,1755151947492,-400.0,0.00056438,120]
[379126545,1755151947503,-417.32,0.00056438,120]
[379126546,1755151947513,-400.0,0.00056438,120]
[379126547,1755151947524,-400.0,0.00056438,120]
[379126548,1755151947535,-1207.1,0.00056438,120]
[379126549,1755151947547,-400.0,0.00056438,120]
[379126550,1755151947558,-417.19,0.00056438,120]
[379126551,1755151947569,-400.0,0.00056438,120]
[379126552,1755151947581,-400.0,0.00056438,120]
[379126553,1755151947592,-931.84,0.00056438,120]
[379126554,1755151947603,-400.0,0.00056438,120]
[379126555,1755151947614,-400.0,0.00056438,120]
[379126556,1755151947625,-400.0,0.00056438,120]
[379126557,1755151947636,-400.0,0.00056438,120]
[379126558,1755151947647,-400.0,0.00056438,120]
[379126559,1755151947658,-429.43108078,0.00056438,120]
[379126560,1755151947670,-400.0,0.00056438,120]
[379126561,1755151947681,-1319.73,0.00056438,120]
[379126562,1755151947692,-400.0,0.00056438,120]
[379126563,1755151947703,-2169.82,0.00056438,120]
[379126564,1755151947714,-400.0,0.00056438,120]
[379126565,1755151947724,-400.0,0.00056438,120]
[379126566,1755151947735,-400.0,0.00056438,120]
[379126567,1755151947746,-843.53,0.00056438,120]
[379126568,1755151947757,-400.0,0.00056438,120]
[379126569,1755151947768,-400.0,0.00056438,120]
[379126570,1755151947778,-400.0,0.00056438,120]
[379126571,1755151947789,-400.0,0.00056438,120]
[379126572,1755151947800,-507.06,0.00056438,120]
[379126573,1755151947811,-400.0,0.00056438,120]
[379126574,1755151947822,-1647.52,0.00056438,120]
[379126575,1755151947833,-1255.35,0.00056438,120]
[379126576,1755151947843,-435.47,0.00056438,120]
[379126577,1755151947854,-300.0,0.00056438,2]
[379126578,1755151947865,-400.0,0.00056438,120]
[379126579,1755151947877,-400.0,0.00056438,2]
[379126580,1755151947888,-2343.63,0.00056438,120]
[379126581,1755151947899,-400.0,0.00056438,120]
[379126582,1755151947910,-1336.7,0.00056438,120]
[379126583,1755151947922,-1524.01,0.00056438,120]
[379126584,1755151947933,-400.0,0.00056438,120]
[379126585,1755151947949,-1100.6,0.00056438,120]
[379126586,1755151947960,-400.0,0.00056438,120]
[379126587,1755151947971,-435.88332264,0.00056438,120]
[379126588,1755151947983,-2359.32,0.00056438,120]
[379126589,1755151947994,-215.55451797,0.00056438,120]
[379126590,1755151948005,-536.21,0.00056438,120]
[379126591,1755151948016,-591.66,0.00056438,120]
[379126592,1755151948027,-400.0,0.00056438,120]
[379126593,1755151948038,-400.0,0.00056438,120]
[379126594,1755151948049,-400.0,0.00056438,120]
[379126595,1755151948060,-400.0,0.00056438,120]
[379126596,1755151948071,-1196.29,0.00056438,120]
[379126597,1755151948083,-400.0,0.00056438,120]
[379126598,1755151948094,-680.02,0.00056438,120]
[379126599,1755151948105,-511.48,0.00056438,120]
[379126600,1755151948116,-1028.17,0.00056438,120]
[379126601,1755151948127,-450.14,0.00056438,120]
[379126602,1755151948138,-400.0,0.00056438,120]
[379126603,1755151948150,-512.79,0.00056438,120]
[379126604,1755151948161,-880.18,0.00056438,120]
[379126605,1755151948172,-411.91,0.00056438,120]
[379126606,1755151948183,-400.0,0.00056438,120]
[379126607,1755151948194,-400.0,0.00056438,120]
[379126608,1755151948205,-2065.78,0.00056438,120]
[379126609,1755151948215,-2269.12,0.00056438,120]
[379126610,1755151948226,-3933.34,0.00056438,120]
[379126611,1755151948237,-430.86,0.00056438,120]
[379126612,1755151948248,-168.53982009,0.00056438,120]
[379126613,1755151948259,-400.0,0.00056438,120]
[379126614,1755151948270,-400.0,0.00056438,120]
[379126615,1755151948282,-400.0,0.00056438,120]
[379126616,1755151948293,-400.0,0.00056438,120]
[379126617,1755151948304,-567.22,0.00056438,2]
[379126618,1755151948316,-3388.22,0.00056438,120]
[379126619,1755151948327,-400.0,0.00056438,120]
[379126620,1755151948338,-706.75,0.00056438,120]
[379126621,1755151948349,-806.62,0.00056438,120]
[379126622,1755151948359,-3022.65,0.00056438,120]
[379126623,1755151948370,-400.0,0.00056438,120]
[379126624,1755151948381,-1072.62,0.00056438,120]
[379126625,1755151948391,-400.0,0.00056438,120]
[379126626,1755151948403,-474.98,0.00056438,120]
[379126627,1755151948413,-400.0,0.00056438,120]
[379126628,1755151948425,-400.0,0.00056438,120]
[379126629,1755151948437,-400.0,0.00056438,120]
[379126630,1755151948448,-400.0,0.00056438,120]
[379126631,1755151948459,-400.0,0.00056438,120]
[379126632,1755151948470,-400.0,0.00056438,120]
[379126633,1755151948482,-400.0,0.00056438,120]
[379126634,1755151948492,-400.0,0.00056438,120]
[379126635,1755151948503,-400.0,0.00056438,120]
[379126636,1755151948516,-500.0,0.00056438,120]
[379126637,1755151948528,-400.0,0.00056438,2]
[379126638,1755151948543,-2669.21,0.00056438,120]
[379126639,1755151948555,-400.3,0.00056438,120]
[379126640,1755151948566,-1124.34,0.00056438,120]
[379126641,1755151948578,-400.0,0.00056438,120]
[379126642,1755151948589,-400.0,0.00056438,120]
[379126643,1755151948600,-400.0,0.00056438,120]
[379126644,1755151948611,-188.16334539,0.00056438,120]
[379126645,1755151948623,-400.0,0.00056438,120]
[379126646,1755151948633,-1646.35,0.00056438,120]
[379126647,1755151948644,-400.0,0.00056438,120]
[379126648,1755151948656,-400.0,0.00056438,30]
[379126649,1755151948667,-986.63,0.00056438,120]
[379126650,1755151948678,-574.51,0.00056438,120]
[379126651,1755151948689,-1010.52,0.00056438,120]
[379126652,1755151948701,-3068.68,0.00056438,120]
[379126653,1755151948712,-400.0,0.00056438,120]
[379126654,1755151948722,-1157.99,0.00056438,120]
[379126655,1755151948733,-1280.68,0.00056438,120]
[379126656,1755151948743,-631.96,0.00056438,120]
[379126657,1755151948755,-384.51279635,0.00056438,120]
[379126658,1755151948767,-400.0,0.00056438,120]
[379126659,1755151948778,-442.43,0.00056438,120]
[379126660,1755151948789,-1231.47,0.00056438,120]
[379126661,1755151948800,-2509.4,0.00056438,120]
[379126662,1755151948811,-930.15,0.00056438,120]
[379126663,1755151948823,-400.0,0.00056438,120]
[379126664,1755151948834,-400.0,0.00056438,120]
[379126665,1755151948844,-474.55,0.00056438,120]
[379126666,1755151948855,-400.0,0.00056438,120]
[379126667,1755151948866,-401.81414654,0.00056438,120]
[379126668,1755151948877,-542.34,0.00056438,120]
[379126669,1755151948888,-400.0,0.00056438,120]
[379126670,1755151948899,-400.0,0.00056438,120]
[379126671,1755151948910,-4323.94,0.00056438,120]
[379126672,1755151948921,-1001.49,0.00056438,120]
[379126673,1755151948932,-400.0,0.00056438,120]
[379126674,1755151948945,-1026.06,0.00056438,120]
[379126675,1755151948961,-2393.33,0.00056438,120]
[379126676,1755151948973,-774.99,0.00056438,120]
[379126677,1755151948984,-400.0,0.00056438,120]
[379126678,1755151948995,-4246.54,0.00056438,120]
[379126679,1755151949006,-400.0,0.00056438,120]
[379126680,1755151949017,-398.0,0.00056438,120]
[379126681,1755151949029,-2333.02,0.00056438,120]
[379126682,1755151949040,-522.19,0.00056438,120]
[379126683,1755151949052,-400.0,0.00056438,120]
[379126684,1755151949062,-524.14,0.00056438,120]
[379126685,1755151949073,-481.66,0.00056438,120]
[379126686,1755151949084,-400.0,0.00056438,120]
[379126687,1755151949094,-400.0,0.00056438,120]
[379126688,1755151949104,-3378.52,0.00056438,120]
[379126689,1755151949116,-400.0,0.00056438,120]
[379126690,1755151949127,-1270.22,0.00056438,120]
[379126691,1755151949138,-400.0,0.00056438,120]
[379126692,1755151949148,-471.19,0.00056438,120]
[379126693,1755151949159,-596.35,0.00056438,120]
[379126694,1755151949170,-400.0,0.00056438,120]
[379126695,1755151949180,-400.0,0.00056438,120]
[379126696,1755151949191,-400.0,0.00056438,120]
[379126697,1755151949202,-2137.2,0.00056438,120]
[379126698,1755151949212,-784.0,0.00056438,120]
[379126699,1755151949223,-400.0,0.00056438,120]
[379126700,1755151949234,-1201.9,0.00056438,120]
[379126701,1755151949244,-4803.22,0.00056438,120]
[379126702,1755151949255,-400.0,0.00056438,120]
[379126703,1755151949265,-400.0,0.00056438,120]
[379126704,1755151949276,-2422.17,0.00056438,120]
[379126705,1755151949288,-400.0,0.00056438,120]
[379126706,1755151949298,-400.0,0.00056438,120]
[379126707,1755151949309,-806.69,0.00056438,120]
[379126708,1755151949319,-415.24,0.00056438,2]
[379126709,1755151949330,-776.05,0.00056438,120]
[379126710,1755151949340,-756.82,0.00056438,120]
[379126711,1755151949351,-400.0,0.00056438,120]
[379126712,1755151949361,-402.98631443,0.00056438,120]
[379126713,1755151949373,-737.75,0.00056438,120]
[379126714,1755151949383,-1099.84,0.00056438,120]
[379126715,1755151949394,-2190.42,0.00056438,120]
[379126716,1755151949406,-443.25,0.00056438,120]
[379126717,1755151949417,-452.45,0.00056438,120]
[379126718,1755151949428,-400.0,0.00056438,120]
[379126719,1755151949438,-1674.15,0.00056438,120]
[379126720,1755151949448,-3816.16,0.00056438,120]
[379126721,1755151949459,-2600.42,0.00056438,120]
[379126722,1755151949469,-1324.56,0.00056438,120]
[379126723,1755151949479,-400.0,0.00056438,120]
[379126724,1755151949490,-500.0,0.00056438,120]
[379126725,1755151949500,-400.0,0.00056438,120]
[379126726,1755151949511,-3126.37,0.00056438,120]
[379126727,1755151949521,-400.0,0.00056438,120]
[379126728,1755151949532,-4802.33,0.00056438,120]
[379126729,1755151949543,-532.53,0.00056438,120]
[379126730,1755151949555,-738.08,0.00056438,120]
[379126731,1755151949565,-400.0,0.00056438,120]
[379126732,1755151949576,-400.0,0.00056438,120]
[379126733,1755151949587,-400.0,0.00056438,120]
[379126734,1755151949598,-1432.3,0.00056438,120]
[379126735,1755151949608,-451.43,0.00056438,120]
[379126736,1755151949619,-1799.4,0.00056438,120]
[379126737,1755151949629,-3657.22,0.00056438,120]
[379126738,1755151949640,-3965.56,0.00056438,120]
[379126739,1755151949652,-4912.44,0.00056438,120]
[379126740,1755151949663,-863.57,0.00056438,120]
[379126741,1755151949673,-865.8,0.00056438,120]
[379126742,1755151949684,-400.0,0.00056438,120]
[379126743,1755151949694,-2237.49,0.00056438,120]
[379126744,1755151949705,-400.0,0.00056438,120]
[379126745,1755151949716,-400.0,0.00056438,120]
[379126746,1755151949727,-1326.15,0.00056438,120]
[379126747,1755151949737,-1845.1,0.00056438,120]
[379126748,1755151949747,-1272.25,0.00056438,120]
[379126749,1755151949758,-2005.83,0.00056438,120]
[379126750,1755151949768,-400.0,0.00056438,120]
[379126751,1755151949779,-972.75,0.00056438,120]
[379126752,1755151949790,-2900.54,0.00056438,120]
[379126753,1755151949800,-1144.13,0.00056438,120]
[379126754,1755151949811,-400.0,0.00056438,120]
[379126755,1755151949822,-2076.9,0.00056438,120]
[379126756,1755151949834,-2172.78,0.00056438,120]
[379126757,1755151950181,-400.0,0.00056438,120]
[379126758,1755151950191,-400.0,0.00056438,120]
[379126759,1755151950201,-2988.88,0.00056438,120]
[379126760,1755151950212,-400.0,0.00056438,120]
[379126761,1755151950222,-404.44,0.00056438,120]
[379126762,1755151950231,-569.34,0.00056438,120]
[379126763,1755151950241,-500.2,0.00056438,120]
[379126764,1755151950252,-400.0,0.00056438,120]
[379126765,1755151950262,-2059.24,0.00056438,120]
[379126766,1755151950274,-400.0,0.00056438,120]
[379126767,1755151950284,-2090.14,0.00056438,120]
[379126768,1755151950294,-756.39,0.00056438,120]
[379126769,1755151950304,-3724.14,0.00056438,120]
[379126770,1755151950314,-400.0,0.00056438,120]
[379126771,1755151950324,-1288.69,0.00056438,120]
[379126772,1755151950333,-433.35,0.00056438,120]
[379126773,1755151950343,-2677.37,0.00056438,120]
[379126774,1755151950355,-642.07,0.00056438,120]
[379126775,1755151950364,-2430.89,0.00056438,120]
[379126776,1755151950374,-400.0,0.00056438,120]
[379126777,1755151950384,-2452.24,0.00056438,120]
[379126778,1755151950395,-455.81,0.00056438,120]
[379126779,1755151950407,-5534.33,0.00056438,120]
[379126780,1755151950416,-726.09,0.00056438,120]
[379126781,1755151950426,-439.2,0.00056438,120]
[379126782,1755151950436,-2660.6,0.00056438,120]
[379126783,1755151950445,-1671.75,0.00056438,120]
[379126784,1755151950455,-1395.59,0.00056438,120]
[379126785,1755151950464,-400.0,0.00056438,120]
[379126786,1755151950474,-3020.26,0.00056438,120]
[379126787,1755151950489,-400.0,0.00056438,120]
[379126788,1755151950501,-400.0,0.00056438,120]
[379126789,1755151950511,-400.0,0.00056438,120]
[379126790,1755151950520,-400.0,0.00056438,120]
[379126791,1755151950530,-400.0,0.00056438,120]
[379126792,1755151950539,-720.26,0.00056438,120]
[379126793,1755151950549,-272.68246496,0.00056438,120]
[379126794,1755151950558,-400.0,0.00056438,120]
[379126795,1755151950568,-1133.0,0.00056438,60]
[379126796,1755151950577,-5312.63,0.00056438,120]
[379126797,1755151950587,-722.15,0.00056438,120]
[379126798,1755151950596,-400.0,0.00056438,120]
[379126799,1755151950607,-680.09,0.00056438,120]
[379126800,1755151950616,-3020.77,0.00056438,120]
[379126801,1755151950626,-400.0,0.00056438,120]
[379126802,1755151950635,-400.0,0.00056438,120]
[379126803,1755151950645,-4215.1,0.00056438,120]
[379126804,1755151950655,-1052.61,0.00056438,120]
[379126805,1755151950665,-703.6,0.00056438,120]
[379126806,1755151950675,-400.0,0.00056438,120]
[379126807,1755151950685,-406.19466609,0.00056438,120]
[379126808,1755151950694,-400.0,0.00056438,120]
[379126809,1755151950704,-400.0,0.00056438,120]
[379126810,1755151950713,-400.0,0.00056438,120]
[379126811,1755151950722,-433.78,0.00056438,120]
[379126812,1755151950732,-627.09,0.00056438,120]
[379126813,1755151950741,-400.0,0.00056438,120]
[379126814,1755151950751,-3691.93,0.00056438,120]
[379126815,1755151950760,-400.0,0.00056438,120]
[379126816,1755151950770,-576.65,0.00056438,120]
[379126817,1755151950779,-443.52,0.00056438,120]
[379126818,1755151950788,-3887.95,0.00056438,120]
[379126819,1755151950798,-1655.04,0.00056438,120]
[379126820,1755151950807,-1229.44,0.00056438,120]
[379126821,1755151950816,-400.0,0.00056438,120]
[379126822,1755151950826,-400.0,0.00056438,120]
[379126823,1755151950836,-831.55,0.00056438,120]
[379126824,1755151950845,-1044.57,0.00056438,120]
[379126825,1755151950855,-400.0,0.00056438,120]
[379126826,1755151950865,-400.0,0.00056438,120]
[379126827,1755151950874,-937.86,0.00056438,120]
[379126828,1755151950884,-400.0,0.00056438,120]
[379126829,1755151950894,-400.0,0.00056438,120]
[379126830,1755151950906,-465.01,0.00056438,120]
[379126831,1755151950915,-400.0,0.00056438,120]
[379126832,1755151950925,-400.0,0.00056438,120]
[379126833,1755151950935,-430.45,0.00056438,120]
[379126834,1755151950949,-400.0,0.00056438,120]
[379126835,1755151950958,-1145.39,0.00056438,120]
[379126836,1755151950967,-400.0,0.00056438,120]
[379126837,1755151950977,-400.0,0.00056438,120]
[379126838,1755151950987,-400.0,0.00056438,120]
[379126839,1755151950996,-727.77,0.00056438,120]
[379126840,1755151951005,-741.62,0.00056438,120]
[379126841,1755151951015,-721.15,0.00056438,120]
[379126842,1755151951026,-400.0,0.00056438,120]
[379126843,1755151951035,-819.26,0.00056438,120]
[379126844,1755151951045,-3068.16,0.00056438,120]
[379126845,1755151951055,-3128.9,0.00056438,120]
[379126846,1755151951064,-404.02226103,0.00056438,120]
[379126847,1755151951073,-250.0,0.00056438,120]
[379126848,1755151951083,-400.0,0.00056438,120]
[379126849,1755151951093,-400.0,0.00056438,120]
[379126850,1755151951103,-400.0,0.00056438,120]
[379126851,1755151951112,-400.0,0.00056438,120]
[379126852,1755151951122,-809.93,0.00056438,120]
[379126853,1755151951131,-352.73,0.00056438,120]
[379126854,1755151951141,-1496.83,0.00056438,15]
[379126855,1755151951152,-611.84,0.00056438,120]
[379126856,1755151951161,-952.2,0.00056438,120]
[379126857,1755151951171,-400.0,0.00056438,120]
[379126858,1755151951181,-1451.73,0.00056438,120]
[379126859,1755151951191,-400.0,0.00056438,120]
[379126860,1755151951201,-437.35,0.00056438,120]
[379126861,1755151951211,-400.0,0.00056438,120]
[379126862,1755151951221,-400.0,0.00056438,120]
[379126863,1755151951230,-1629.11,0.00056438,120]
[379126864,1755151951240,-400.0,0.00056438,120]
[379126865,1755151951251,-661.99,0.00056438,120]
[379126866,1755151951260,-515.21,0.00056438,120]
[379126867,1755151951270,-400.0,0.00056438,120]
[379126868,1755151951280,-400.0,0.00056438,120]
[379126869,1755151951289,-393.9,0.00056438,120]
[379126870,1755151951299,-400.0,0.00056438,120]